fUST/lending_fUST_20260118
["ID","MTS","AMOUNT","RATE_DAILY","PERIOD"]
[402432489,1768675872030,-500.0,0.00017534,3]
[402432491,1768675872039,-500.0,0.00017534,3]
[402432492,1768675872049,-509.91,0.00017534,3]
[402432494,1768675872059,-497.71228405,0.00017534,3]
[402432496,1768675872069,-1711.38,0.00017534,3]
[402432498,1768675872079,-1068.39,0.00017534,3]
[402432500,1768675872087,-500.0,0.00017534,3]
[402432502,1768675872097,-500.0,0.00017534,3]
[402432504,1768675872109,-500.0,0.00017534,3]
[402432506,1768675872120,-500.0,0.00017534,3]
[402432508,1768675872129,-500.0,0.00017534,3]
[402432510,1768675872139,-500.0,0.00017534,3]
[402432512,1768675872148,-1264.17,0.00017534,3]
[402432514,1768675872157,-1911.06,0.00017534,3]
[402432516,1768675872166,-731.23,0.00017534,3]
[402432518,1768675872176,-500.0,0.00017534,3]
[402432520,1768675872185,-2552.27,0.00017534,3]
[402432522,1768675872195,-1441.61,0.00017534,3]
[402432523,1768675872204,-1297.14,0.00017534,3]
[402432525,1768675872214,-901.56,0.00017534,3]
[402432528,1768675872224,-762.49,0.00017534,3]
[402432529,1768675872234,-1023.82,0.00017534,3]
[402432531,1768675872244,-500.0,0.00017534,3]
[402432533,1768675872254,-500.0,0.00017534,3]
[402432535,1768675872263,-500.0,0.00017534,3]
[402432537,1768675872272,-500.0,0.00017534,3]
[402432539,1768675872283,-500.0,0.00017534,3]
[402432541,1768675872292,-500.0,0.00017534,3]
[402432542,1768675872301,-808.76,0.00017534,3]
[402432544,1768675872311,-500.0,0.00017534,3]
[402432546,1768675872320,-500.0,0.00017534,3]
[402432548,1768675872329,-548.54460161,0.00017534,3]
[402432550,1768675872339,-917.73,0.00017534,3]
[402432552,1768675872349,-906.34,0.00017534,3]
[402432554,1768675872358,-500.0,0.00017534,3]
[402432556,1768675872368,-569.12,0.00017534,3]
[402432558,1768675872377,-1618.42,0.00017534,3]
[402432560,1768675872387,-178.3,0.00017534,2]
[402432562,1768675872396,-500.0,0.00017534,3]
[402432564,1768675872405,-1752.95,0.00017534,3]
[402432566,1768675872416,-697.63,0.00017534,3]
[402432568,1768675872425,-1011.8,0.00017534,3]
[402432570,1768675872434,-619.55,0.00017534,3]
[402432572,1768675872444,-575.62,0.00017534,3]
[402432574,1768675872452,-795.91,0.00017534,3]
[402432575,1768675872461,-500.0,0.00017534,3]
[402432578,1768675872471,-669.17,0.00017534,3]
[402432579,1768675872480,-500.0,0.00017534,3]
[402432581,1768675872490,-730.43,0.00017534,3]
[402432583,1768675872499,-500.0,0.00017534,3]
[402432585,1768675872508,-865.41,0.00017534,3]
[402432587,1768675872518,-500.0,0.00017534,3]
[402432589,1768675872527,-500.0,0.00017534,3]
[402432591,1768675872537,-500.0,0.00017534,3]
[402432593,1768675872548,-500.0,0.00017534,3]
[402432595,1768675872558,-1562.03,0.00017534,3]
[402432597,1768675872568,-500.0,0.00017534,3]
[402432599,1768675872579,-500.0,0.00017534,3]
[402432601,1768675872589,-500.0,0.00017534,3]
[402432603,1768675872599,-598.38,0.00017534,3]
[402432605,1768675872609,-500.0,0.00017534,3]
[402432607,1768675872619,-680.48,0.00017534,3]
[402432609,1768675872632,-1316.96,0.00017534,3]
[402432611,1768675872643,-1646.11,0.00017534,3]
[402432613,1768675872652,-500.0,0.00017534,3]
[402432615,1768675872662,-500.0,0.00017534,3]
[402432617,1768675872672,-500.0,0.00017534,3]
[402432619,1768675872682,-500.0,0.00017534,3]
[402432621,1768675872691,-500.0,0.00017534,3]
[402432623,1768675872701,-500.0,0.00017534,3]
[402432625,1768675872710,-500.0,0.00017534,3]
[402432627,1768675872720,-923.82,0.00017534,3]
[402432629,1768675872729,-539.74,0.00017534,3]
[402432631,1768675872739,-500.0,0.00017534,3]
[402432633,1768675872748,-500.0,0.00017534,3]
[402432635,1768675872757,-500.0,0.00017534,3]
[402432637,1768675872767,-545.96,0.00017534,3]
[402432639,1768675872776,-539.86,0.00017534,3]
[402432641,1768675872785,-500.0,0.00017534,3]
[402432643,1768675872795,-500.0,0.00017534,3]
[402432645,1768675872805,-352.98387266,0.00017534,3]
[402432647,1768675872814,-500.0,0.00017534,3]
[402432649,1768675872824,-275.02958199,0.00017534,3]
[402432651,1768675872834,-1249.71,0.00017534,3]
[402432653,1768675872845,-895.54,0.00017534,3]
[402432655,1768675872855,-822.61,0.00017534,3]
[402432657,1768675872864,-500.0,0.00017534,3]
[402432659,1768675872874,-545.77,0.00017534,3]
[402432661,1768675872883,-500.0,0.00017534,3]
[402432663,1768675872892,-1542.26,0.00017534,3]
[402432665,1768675872902,-500.0,0.00017534,3]
[402432667,1768675872912,-500.0,0.00017534,3]
[402432669,1768675872921,-500.0,0.00017534,3]
[402432671,1768675872931,-500.0,0.00017534,3]
[402432673,1768675872940,-500.0,0.00017534,3]
[402432675,1768675872949,-739.58,0.00017534,3]
[402432677,1768675872959,-310.90446794,0.00017534,3]
[402432678,1768675872969,-500.0,0.00017534,3]
[402432680,1768675872979,-1833.14,0.00017534,3]
[402432682,1768675872988,-1311.65,0.00017534,3]
[402432684,1768675872998,-500.0,0.00017534,3]
[402432686,1768675873008,-994.35,0.00017534,3]
[402432688,1768675873018,-500.0,0.00017534,3]
[402432690,1768675873029,-1390.83,0.00017534,3]
[402432693,1768675873039,-500.0,0.00017534,3]
[402432694,1768675873050,-500.0,0.00017534,3]
[402432696,1768675873061,-500.0,0.00017534,3]
[402432698,1768675873070,-500.0,0.00017534,3]
[402432700,1768675873080,-1684.0,0.00017534,3]
[402432702,1768675873089,-500.0,0.00017534,3]
[402432704,1768675873099,-500.0,0.00017534,3]
[402432706,1768675873108,-500.0,0.00017534,3]
[402432708,1768675873118,-500.0,0.00017534,3]
[402432711,1768675873128,-1347.43,0.00017534,3]
[402432712,1768675873138,-500.0,0.00017534,3]
[402432714,1768675873148,-500.0,0.00017534,3]
[402432717,1768675873157,-1185.09,0.00017534,3]
[402432719,1768675873167,-500.0,0.00017534,3]
[402432720,1768675873177,-500.0,0.00017534,3]
[402432722,1768675873186,-500.0,0.00017534,3]
[402432724,1768675873196,-504.66,0.00017534,3]
[402432726,1768675873207,-500.0,0.00017534,3]
[402432728,1768675873216,-500.0,0.00017534,3]
[402432730,1768675873226,-555.8,0.00017534,3]
[402432732,1768675873236,-500.0,0.00017534,3]
[402432734,1768675873246,-564.15,0.00017534,3]
[402432736,1768675873256,-606.33,0.00017534,3]
[402432738,1768675873266,-1200.0,0.00017534,2]
[402432740,1768675873275,-500.0,0.00017534,3]
[402432742,1768675873285,-1439.56,0.00017534,3]
[402432744,1768675873295,-500.0,0.00017534,3]
[402432746,1768675873304,-500.0,0.00017534,3]
[402432748,1768675873313,-500.0,0.00017534,3]
[402432750,1768675873323,-906.85,0.00017534,3]
[402432751,1768675873333,-892.6,0.00017534,3]
[402432752,1768675873343,-500.0,0.00017534,3]
[402432753,1768675873353,-770.84,0.00017534,3]
[402432754,1768675873363,-826.27,0.00017534,3]
[402432755,1768675873373,-500.0,0.00017534,3]
[402432756,1768675873382,-500.0,0.00017534,3]
[402432757,1768675873392,-646.32,0.00017534,3]
[402432758,1768675873401,-500.0,0.00017534,3]
[402432759,1768675873411,-1431.76,0.00017534,3]
[402432760,1768675873421,-500.0,0.00017534,3]
[402432761,1768675873430,-1218.15,0.00017534,3]
[402432762,1768675873439,-1873.13,0.00017534,3]
[402432763,1768675873449,-509.04,0.00017534,3]
[402432764,1768675873459,-741.52,0.00017534,3]
[402432765,1768675873469,-364.13507716,0.00017534,3]
[402432766,1768675873478,-1051.96,0.00017534,3]
[402432767,1768675873488,-500.0,0.00017534,3]
[402432768,1768675873497,-500.0,0.00017534,3]
[402432769,1768675873507,-655.97,0.00017534,3]
[402432770,1768675873517,-596.42,0.00017534,3]
[402432771,1768675873527,-500.0,0.00017534,3]
[402432772,1768675873537,-500.0,0.00017534,3]
[402432773,1768675873547,-600.91,0.00017534,3]
[402432774,1768675873557,-763.04,0.00017534,3]
[402432775,1768675873567,-1783.16,0.00017534,3]
[402432776,1768675873577,-552.3,0.00017534,3]
[402432777,1768675873587,-500.0,0.00017534,3]
[402432778,1768675873597,-547.52,0.00017534,3]
[402432779,1768675873607,-500.0,0.00017534,3]
[402432780,1768675873617,-861.47,0.00017534,3]
[402432781,1768675873630,-500.0,0.00017534,3]
[402432782,1768675873640,-696.99,0.00017534,3]
[402432783,1768675873650,-500.0,0.00017534,3]
[402432784,1768675873660,-680.42,0.00017534,3]
[402432785,1768675873671,-500.0,0.00017534,3]
[402432786,1768675873680,-500.0,0.00017534,3]
[402432787,1768675873690,-500.0,0.00017534,3]
[402432789,1768675873701,-693.13,0.00017534,3]
[402432790,1768675873711,-500.0,0.00017534,3]
[402432792,1768675873721,-500.0,0.00017534,3]
[402432794,1768675873731,-909.21,0.00017534,3]
[402432796,1768675873741,-1860.62,0.00017534,3]
[402432798,1768675873751,-880.59,0.00017534,3]
[402432800,1768675873761,-935.44,0.00017534,3]
[402432802,1768675873771,-500.0,0.00017534,3]
[402432804,1768675873781,-1236.21,0.00017534,3]
[402432806,1768675873790,-500.0,0.00017534,3]
[402432808,1768675873799,-679.86,0.00017534,3]
[402432810,1768675873809,-822.44,0.00017534,3]
[402432812,1768675873819,-500.0,0.00017534,3]
[402432814,1768675873828,-500.0,0.00017534,3]
[402432815,1768675873838,-692.88,0.00017534,3]
[402432818,1768675873849,-813.92,0.00017534,3]
[402432820,1768675873859,-1263.08,0.00017534,3]
[402432821,1768675873870,-500.0,0.00017534,3]
[402432823,1768675873880,-500.0,0.00017534,3]
[402432825,1768675873889,-500.0,0.00017534,3]
[402432826,1768675873898,-773.3,0.00017534,3]
[402432827,1768675873908,-1573.93,0.00017534,3]
[402432829,1768675873918,-500.0,0.00017534,3]
[402432831,1768675873928,-500.0,0.00017534,3]
[402432832,1768675873937,-925.02,0.00017534,3]
[402432833,1768675873947,-500.0,0.00017534,3]
[402432834,1768675873956,-2551.07,0.00017534,3]
[402432835,1768675873965,-456.1033492,0.00017534,2]
[402432836,1768675873975,-500.0,0.00017534,3]
[402432837,1768675873984,-490.09113196,0.00017534,3]
[402432838,1768675873994,-500.0,0.00017534,3]
[402432839,1768675874004,-1624.98,0.00017534,3]
[402432840,1768675874013,-500.0,0.00017534,3]
[402432841,1768675874023,-500.0,0.00017534,3]
[402432842,1768675874033,-824.25,0.00017534,3]
[402432843,1768675874044,-500.0,0.00017534,3]
[402432844,1768675874056,-500.0,0.00017534,3]
[402432845,1768675874066,-1074.68,0.00017534,3]
[402432846,1768675874076,-980.22,0.00017534,3]
[402432847,1768675874087,-500.0,0.00017534,3]
[402432848,1768675874096,-500.0,0.00017534,3]
[402432849,1768675874105,-849.33,0.00017534,3]
[402432850,1768675874115,-500.0,0.00017534,3]
[402432851,1768675874124,-500.0,0.00017534,3]
[402432852,1768675874134,-526.11,0.00017534,3]
[402432853,1768675874144,-982.5,0.00017534,3]
[402432854,1768675874154,-901.72,0.00017534,3]
[402432855,1768675874164,-500.0,0.00017534,3]
[402432856,1768675874174,-500.0,0.00017534,3]
[402432857,1768675874184,-682.73,0.00017534,3]
[402432858,1768675874194,-533.96,0.00017534,3]
[402432859,1768675874204,-2396.6,0.00017534,3]
[402432860,1768675874214,-500.0,0.00017534,3]
[402432861,1768675874224,-1103.35,0.00017534,3]
[402432862,1768675874234,-738.3,0.00017534,3]
[402432863,1768675874243,-702.8,0.00017534,3]
[402432864,1768675874253,-1173.22,0.00017534,3]
[402432865,1768675874262,-823.13,0.00017534,3]
[402432866,1768675874273,-500.0,0.00017534,3]
[402432867,1768675874283,-500.0,0.00017534,3]
[402432868,1768675874292,-500.0,0.00017534,3]
[402432869,1768675874303,-500.0,0.00017534,3]
[402432870,1768675874313,-500.0,0.00017534,3]
[402432871,1768675874323,-7250.78,0.00017534,3]
[402432872,1768675874333,-552.93,0.00017534,3]
[402432873,1768675874343,-1399.24,0.00017534,3]
[402432874,1768675874353,-1148.17,0.00017534,3]
[402432875,1768675874363,-3131.96,0.00017534,3]
[402432876,1768675874373,-29.44267472,0.00017534,3]
[402432878,1768675876082,-2058.55187124,0.00013498,2]
[402432886,1768676088621,5858.0,0.00027397,120]
[402432888,1768676194576,-3379.7,0.00012965,2]
[402432889,1768676209580,-5000.0,0.00013096,2]
[402432890,1768676224770,-157.39897535,0.00013162,2]
[402432891,1768676231786,5000.0,0.00013162,2]
[402432892,1768676241457,198.3393028,0.00024068,120]
[402432893,1768676245926,-265.132,0.00013228,2]
[402432894,1768676297724,-391.41597497,0.00012639,2]
[402432897,1768676410297,973.24371897,0.00027397,120]
[402432898,1768676411448,637.66218595,0.00027397,120]
[402432899,1768676422015,-300.0,0.00013272,2]
[402432900,1768676422045,-500.0,0.00013273,2]
[402432901,1768676422074,-500.0,0.00013273,2]
[402432902,1768676422102,-500.0,0.00013273,2]
[402432903,1768676422130,-500.0,0.00013273,2]
[402432904,1768676422158,-500.0,0.00013273,2]
[402432905,1768676422186,-500.0,0.00013273,2]
[402432906,1768676422213,-500.0,0.00013273,2]
[402432907,1768676422242,-500.0,0.00013273,2]
[402432908,1768676422709,-500.0,0.00013273,2]
[402432909,1768676427996,-500.0,0.00013273,2]
[402432910,1768676428024,-601.16084877,0.00013273,2]
[402432911,1768676428053,-500.0,0.00013273,2]
[402432912,1768676428080,-500.0,0.00013273,2]
[402432913,1768676428109,-797.68830246,0.00013362,2]
[402432914,1768676434026,-4202.31169754,0.00013362,2]
[402432915,1768676461848,163.28,0.00027297,120]
[402432916,1768676464089,163.28,0.00027297,120]
[402432917,1768676465939,163.28,0.00027297,120]
[402432919,1768676564669,-5000.0,0.00012647,2]
[402432920,1768676564775,-200.80369751,0.00012711,2]
[402432921,1768676564819,-554.07710442,0.00012775,2]
[402432922,1768676564852,-212.105,0.00013228,2]
[402432923,1768676582547,300.0,0.00013272,2]
[402432924,1768676584050,5000.0,0.00013273,2]
[402432926,1768676603856,448.80595766,0.00012855,2]
[402432927,1768676606586,2317.23243848,0.00013273,2]
[402432928,1768676606609,2682.76756152,0.00013273,2]
[402432929,1768676629631,5000.0,0.00013273,2]
[402432930,1768676642243,300.0,0.00013272,2]
[402432933,1768676653794,2017.24243848,0.00013273,2]
[402432934,1768676653819,2982.75756152,0.00013273,2]
[402432937,1768676777633,151.51,7.696e-05,2]
[402432938,1768676778019,170.45,7.971e-05,2]
[402432940,1768676885619,-419.42319412,9.64e-05,2]
[402432941,1768676888024,-450.37351012,9.64e-05,2]
[402432942,1768676892962,-268.44803052,9.64e-05,2]
[402432943,1768676895192,-3861.75526524,9.64e-05,2]
[402432944,1768676895229,-158.45,9.737e-05,2]
[402432945,1768676895259,-300.0,0.00013172,2]
[402432946,1768676901388,1359.59946952,0.00013173,2]
[402432949,1768676907159,-3640.40053048,0.00013173,2]
[402432950,1768676913376,163.66,8.741e-05,2]
[402432951,1768676915533,-190.94,9.077e-05,2]
[402432952,1768676915557,-12.26803785,9.413e-05,2]
[402432953,1768676931250,-217.56550528,9.319e-05,2]
[402432954,1768676933277,-203.20803785,9.226e-05,2]
[402432955,1768676933303,-80.34199528,9.319e-05,2]
[402432956,1768676934857,-243.14212557,9.319e-05,2]
[402432957,1768676936465,-500.0,9.319e-05,2]
[402432958,1768676940332,-808.79097989,9.319e-05,2]
[402432959,1768676941940,-228.75034092,9.319e-05,2]
[402432960,1768676943203,-169.83519067,9.319e-05,2]
[402432961,1768676947086,-264.74069852,9.319e-05,2]
[402432962,1768676987567,158.25,7.14e-05,2]
[402432963,1768676988503,180.86,7.404e-05,2]
[402432964,1768676988916,203.47,7.669e-05,2]
[402432965,1768676989340,226.07,7.933e-05,2]
[402433012,1768677037976,-2716.37487398,9.226e-05,2]
[402433013,1768677037986,-2486.83316387,9.319e-05,2]
[402433014,1768677037996,-3004.23249507,0.00012655,2]
[402433015,1768677038006,-1686.00698638,0.00013105,2]
[402433016,1768677038016,-1200.0,0.0001317,2]
[402433017,1768677038026,-174.0,0.00013171,2]
[402433018,1768677038036,-300.0,0.00013171,2]
[402433019,1768677038047,-300.0,0.00013171,2]
[402433020,1768677038057,-50000.0,0.00013172,2]
[402433021,1768677038067,-500.0,0.00013172,2]
[402433022,1768677038077,-500.0,0.00013172,2]
[402433023,1768677038086,-625.13834687,0.00013172,2]
[402433024,1768677038095,-180.9115193,0.00013172,2]
[402433025,1768677038105,-500.0,0.00013172,2]
[402433026,1768677038116,-500.0,0.00013172,2]
[402433027,1768677038125,-500.0,0.00013172,2]
[402433028,1768677038135,-500.0,0.00013172,2]
[402433029,1768677038145,-500.0,0.00013172,2]
[402433030,1768677038155,-500.0,0.00013172,2]
[402433031,1768677038165,-314.25385935,0.00013172,2]
[402433032,1768677038174,-500.0,0.00013172,2]
[402433033,1768677038184,-500.0,0.00013172,2]
[402433034,1768677038194,-500.0,0.00013172,2]
[402433035,1768677038203,-566.29609953,0.00013172,2]
[402433036,1768677038213,-500.0,0.00013172,2]
[402433037,1768677038223,-500.0,0.00013172,2]
[402433038,1768677038233,-500.0,0.00013172,2]
[402433039,1768677038245,-500.0,0.00013172,2]
[402433040,1768677038258,-312.65822503,0.00013172,2]
[402433041,1768677038268,-500.0,0.00013172,2]
[402433042,1768677038278,-500.0,0.00013172,2]
[402433043,1768677038290,-500.0,0.00013172,2]
[402433044,1768677038300,-500.0,0.00013172,2]
[402433045,1768677038309,-500.0,0.00013172,2]
[402433046,1768677038321,-500.0,0.00013172,2]
[402433047,1768677038331,-500.0,0.00013172,2]
[402433048,1768677038341,-500.0,0.00013172,2]
[402433049,1768677038350,-500.0,0.00013172,2]
[402433050,1768677038359,-500.0,0.00013172,2]
[402433051,1768677038368,-500.0,0.00013172,2]
[402433052,1768677038378,-500.0,0.00013172,2]
[402433053,1768677038387,-500.0,0.00013172,2]
[402433054,1768677038397,-500.0,0.00013172,2]
[402433055,1768677038407,-500.0,0.00013172,2]
[402433056,1768677038416,-500.0,0.00013172,2]
[402433057,1768677038426,-500.0,0.00013172,2]
[402433058,1768677038436,-500.0,0.00013172,2]
[402433059,1768677038446,-500.0,0.00013172,2]
[402433060,1768677038456,-500.0,0.00013172,2]
[402433061,1768677038465,-500.0,0.00013172,2]
[402433062,1768677038475,-500.0,0.00013172,2]
[402433063,1768677038485,-500.0,0.00013172,2]
[402433064,1768677038495,-423.18581211,0.00013172,2]
[402433065,1768677038505,-500.0,0.00013172,2]
[402433066,1768677038516,-274.54164041,0.00013172,2]
[402433067,1768677038526,-500.0,0.00013172,2]
[402433068,1768677038537,-500.0,0.00013172,2]
[402433069,1768677038547,-500.0,0.00013172,2]
[402433070,1768677038557,-500.0,0.00013172,2]
[402433071,1768677038567,-500.0,0.00013172,2]
[402433072,1768677038577,-500.0,0.00013172,2]
[402433073,1768677038587,-500.0,0.00013172,2]
[402433074,1768677038597,-500.0,0.00013172,2]
[402433075,1768677038607,-1000000.0,0.00013173,2]
[402433076,1768677038617,-151.0,0.000132,2]
[402433077,1768677038626,-196.78762356,0.00013205,2]
[402433078,1768677038636,-1686.00698636,0.00013228,2]
[402433079,1768677038646,-502.83955258,0.00013273,2]
[402433080,1768677038656,-522.04357159,0.00013273,2]
[402433081,1768677038666,-374.47725203,0.00013273,2]
[402433082,1768677038676,-500.0,0.00013273,2]
[402433083,1768677038686,-500.0,0.00013273,2]
[402433084,1768677038696,-453.71259255,0.00013273,2]
[402433085,1768677038706,-505.69222847,0.00013273,2]
[402433086,1768677038716,-500.0,0.00013273,2]
[402433087,1768677038726,-500.0,0.00013273,2]
[402433088,1768677038736,-500.0,0.00013273,2]
[402433089,1768677038746,-500.0,0.00013273,2]
[402433090,1768677038757,-524.62460419,0.00013273,2]
[402433091,1768677038768,-500.0,0.00013273,2]
[402433092,1768677038778,-500.0,0.00013273,2]
[402433093,1768677038788,-500.0,0.00013273,2]
[402433094,1768677038798,-500.0,0.00013273,2]
[402433095,1768677038813,-500.0,0.00013273,2]
[402433096,1768677038823,-500.0,0.00013273,2]
[402433097,1768677038834,-500.0,0.00013273,2]
[402433098,1768677038844,-500.0,0.00013273,2]
[402433099,1768677038854,-158.0,0.00013273,2]
[402433100,1768677038864,-500.0,0.00013273,2]
[402433101,1768677038875,-500.0,0.00013273,2]
[402433102,1768677038886,-500.0,0.00013273,2]
[402433103,1768677038897,-500.0,0.00013273,2]
[402433104,1768677038906,-500.0,0.00013273,2]
[402433105,1768677038917,-1686.00698636,0.00013352,2]
[402433106,1768677038927,-500.0,0.00013445,2]
[402433107,1768677038938,-1686.00698636,0.00013475,2]
[402433108,1768677038948,-151.0,0.000135,2]
[402433109,1768677038958,-151.0,0.000135,2]
[402433110,1768677038968,-151.0,0.000135,2]
[402433111,1768677038978,-151.0,0.000135,2]
[402433112,1768677038988,-151.0,0.000135,2]
[402433113,1768677038999,-1686.00698636,0.00013598,2]
[402433114,1768677039010,-398.025611,0.00013673,2]
[402433115,1768677039022,-300.0,0.00013673,2]
[402433116,1768677039033,-500.0,0.00013698,2]
[402433117,1768677039044,-500.0,0.00013698,2]
[402433118,1768677039056,-275.23827501,0.00013698,2]
[402433119,1768677039068,-500.0,0.00013698,2]
[402433120,1768677039078,-500.0,0.00013698,2]
[402433121,1768677039088,-500.0,0.00013698,2]
[402433122,1768677039100,-500.0,0.00013698,2]
[402433123,1768677039112,-500.0,0.00013698,2]
[402433124,1768677039124,-500.0,0.00013698,2]
[402433125,1768677039135,-500.0,0.00013698,2]
[402433126,1768677039145,-589.78946072,0.00013698,2]
[402433127,1768677039155,-500.0,0.00013698,2]
[402433128,1768677039165,-500.0,0.00013698,2]
[402433129,1768677039175,-500.0,0.00013698,2]
[402433130,1768677039185,-500.0,0.00013698,2]
[402433131,1768677039195,-500.0,0.00013698,2]
[402433132,1768677039206,-500.0,0.00013698,2]
[402433133,1768677039216,-500.0,0.00013698,2]
[402433134,1768677039226,-500.0,0.00013698,2]
[402433135,1768677039237,-500.0,0.00013698,2]
[402433136,1768677039250,-500.0,0.00013698,2]
[402433137,1768677039260,-500.0,0.00013698,2]
[402433138,1768677039269,-500.0,0.00013698,2]
[402433139,1768677039281,-204.90208499,0.00013698,2]
[402433140,1768677039292,-500.0,0.00013698,2]
[402433141,1768677039302,-500.0,0.00013698,2]
[402433142,1768677039311,-500.0,0.00013698,2]
[402433143,1768677039323,-500.0,0.00013698,2]
[402433144,1768677039333,-500.0,0.00013698,2]
[402433145,1768677039343,-500.0,0.00013698,2]
[402433146,1768677039352,-500.0,0.00013698,2]
[402433147,1768677039363,-500.0,0.00013698,2]
[402433148,1768677039372,-500.0,0.00013698,2]
[402433149,1768677039382,-500.0,0.00013698,2]
[402433150,1768677039392,-500.0,0.00013698,2]
[402433151,1768677039402,-500.0,0.00013698,2]
[402433152,1768677039412,-500.0,0.00013698,2]
[402433153,1768677039422,-3133.42,0.00013698,2]
[402433154,1768677039432,-3133.42,0.00013698,2]
[402433155,1768677039442,-3133.42,0.00013698,2]
[402433156,1768677039452,-3133.42,0.00013698,2]
[402433157,1768677039461,-3133.42,0.00013698,2]
[402433158,1768677039471,-3133.42,0.00013698,2]
[402433159,1768677039481,-3133.42,0.00013698,2]
[402433160,1768677039491,-3133.42,0.00013698,2]
[402433161,1768677039501,-3133.42,0.00013698,2]
[402433162,1768677039511,-3133.42,0.00013698,2]
[402433163,1768677039521,-3133.42,0.00013698,2]
[402433164,1768677039532,-3133.42,0.00013698,2]
[402433165,1768677039542,-3133.42,0.00013698,2]
[402433166,1768677039552,-3133.42,0.00013698,2]
[402433167,1768677039563,-3133.42,0.00013698,2]
[402433168,1768677039573,-3133.42,0.00013698,2]
[402433169,1768677039583,-3133.42,0.00013698,2]
[402433171,1768677039593,-3133.42,0.00013698,2]
[402433173,1768677039603,-3133.42,0.00013698,2]
[402433175,1768677039614,-3133.42,0.00013698,2]
[402433177,1768677039624,-3133.42,0.00013698,2]
[402433179,1768677039633,-3133.42,0.00013698,2]
[402433181,1768677039642,-3133.42,0.00013698,2]
[402433185,1768677039656,-3133.5769842,0.00013698,2]
[402433187,1768677039667,-500.0,0.00013698,2]
[402433189,1768677039677,-500.0,0.00013698,2]
[402433191,1768677039687,-500.0,0.00013698,2]
[402433193,1768677039697,-500.0,0.00013698,2]
[402433196,1768677039708,-500.0,0.00013698,2]
[402433199,1768677039721,-500.0,0.00013698,2]
[402433202,1768677039732,-500.0,0.00013698,2]
[402433203,1768677039742,-218.61799449,0.00013698,2]
[402433204,1768677039752,-520.97489012,0.00013698,2]
[402433205,1768677039762,-567.7923432,0.00013698,2]
[402433206,1768677039772,-500.0,0.00013698,2]
[402433207,1768677039781,-500.0,0.00013698,2]
[402433208,1768677039791,-500.0,0.00013698,2]
[402433209,1768677039801,-649.34424817,0.00013698,2]
[402433211,1768677039811,-1125.11,0.00013698,2]
[402433212,1768677039820,-1125.11,0.00013698,2]
[402433213,1768677039829,-1125.11,0.00013698,2]
[402433214,1768677039839,-1125.11,0.00013698,2]
[402433215,1768677039849,-1125.11,0.00013698,2]
[402433216,1768677039859,-1125.11,0.00013698,2]
[402433217,1768677039869,-1125.11,0.00013698,2]
[402433218,1768677039880,-1125.11,0.00013698,2]
[402433219,1768677039890,-1125.11,0.00013698,2]
[402433220,1768677039899,-1125.11,0.00013698,2]
[402433221,1768677039909,-1125.11,0.00013698,2]
[402433222,1768677039918,-1125.11,0.00013698,2]